[Event "Queens Festival Final Team 2022"]
[Site "Tornelo"]
[Date "2022.06.26"]
[Round "9.1"]
[White "Catabay, Mae Katelyn Rose"]
[Black "Khezrian, Nooralzahra"]
[Result "1-0"]
[ECO "E72"]
[WhiteElo "1321"]
[BlackElo "1269"]
[Annotator "NA RC"]
[PlyCount "89"]
[EventDate "2022.06.24"]
[EventType "team-tourn"]
[EventCountry "NET"]
[SourceTitle "playchess.com"]
[Source "ChessBase"]
[SourceQuality "1"]
[WhiteTeam "England"]
[BlackTeam "Iran"]
[WhiteTeamCountry "ENG"]
[BlackTeamCountry "IRI"]
[TimeControl "180+2"]

1. d4 {[%emt 0:00:02]} Nf6 {[%emt 0:00:04]} 2. c4 {[%emt 0:00:02]} g6 {[%emt 0:00:01]} 3. Nc3 {[%emt 0:00:01]} Bg7 {[%emt 0:00:01]} 4. g3 {[%emt 0:00:02]} d6 {[%emt 0:00:02]} 5. Bg2 {[%emt 0:00:01]} O-O {[%emt 0:00:02]} 6. e4 {[%emt 0:00:01]} e5 {[%emt 0:00:03]} 7. d5 {[%emt 0:00:04]} a5 {[%emt 0:00:11]} 8. Nge2 {[%emt 0:00:03]} Na6 {[%emt 0:00:02]} 9. O-O {[%emt 0:00:02]} Nc5 {[%emt 0:00:01]} 10. Be3 {[%emt 0:00:05]} Nfd7 {[%emt 0:00:11]} 11. a3 {[%emt 0:00:07]} f5 {[%emt 0:00:16]} 12. f3 {[%emt 0:00:15]} Na6 {[%emt 0:00:33]} 13. Rb1 {[%emt 0:00:04]} fxe4 {[%emt 0:00:10]} 14. fxe4 {[%emt 0:00:03]} Ndc5 {[%emt 0:00:04]} 15. b4 {[%emt 0:00:12]} axb4 {[%emt 0:00:13]} 16. axb4 {[%emt 0:00:03]} Nd7 {[%emt 0:00:04]} 17. Qd2 {[%emt 0:00:27]} b6 {[%emt 0:00:04]} 18. Ra1 {[%emt 0:00:07]} Rxf1+ {[%emt 0:00:05]} 19. Bxf1 {[%emt 0:00:06]} Bb7 {[%emt 0:00:06]} 20. Rb1 {[%emt 0:00:03]} Qf6 {[%emt 0:00:18]} 21. Bg5 {[%emt 0:00:11]} Qf7 {[%emt 0:00:02]} 22. Bg2 {[%emt 0:00:05]} Rf8 {[%emt 0:00:03]} 23. Rf1 {[%emt 0:00:03]} Qe8 {[%emt 0:00:04]} 24. Nb5 {[%emt 0:00:09]} Rxf1+ {[%emt 0:00:08]} 25. Kxf1 {[%emt 0:00:07]} Bf8 {[%emt 0:00:04]} 26. h4 {[%emt 0:00:18]} Qf7+ {[%emt 0:00:06]} 27. Kg1 {[%emt 0:00:02]} Nf6 {[%emt 0:00:02]} 28. Bf3 {[%emt 0:00:13]} Bc8 {[%emt 0:00:08]} 29. Kg2 {[%emt 0:00:05]} Ng4 {[%emt 0:00:03]} 30. Ng1 {[%emt 0:00:14]} h6 {[%emt 0:00:23]} 31. Bxg4 {[%emt 0:00:05]} Bxg4 {[%emt 0:00:05]} 32. Bxh6 {[%emt 0:00:03]} Bxh6 {[%emt 0:00:08]} 33. Qxh6 {[%emt 0:00:02]} Nxb4 {[%emt 0:00:02]} 34. Qe3 {[%emt 0:00:13]} Nc2 {[%emt 0:00:09]} 35. Qd2 {[%emt 0:00:02]} Nd4 {[%emt 0:00:02]} 36. Nxd4 {[%emt 0:00:02]} exd4 {[%emt 0:00:01]} 37. Qxd4 {[%emt 0:00:02]} Qe7 {[%emt 0:00:01]} 38. e5 {[%emt 0:00:05]} Qxe5 {[%emt 0:00:03]} 39. Qxg4 {[%emt 0:00:03]} Qb2+ {[%emt 0:00:02]} 40. Kh3 {[%emt 0:00:02]} Qc2 {[%emt 0:00:01]} 41. Nf3 {[%emt 0:00:06]} b5 {[%emt 0:00:05]} 42. Qe6+ {[%emt 0:00:03]} Kg7 {[%emt 0:00:02]} 43. Qe7+ {[%emt 0:00:05]} Kh6 {[%emt 0:00:02]} 44. Qf8+ {[%emt 0:00:10]} Kh7 {[%emt 0:00:02]} 45. Ng5# {[%emt 0:00:02]} 1-0

[Event "Queens Festival Final Team 2022"]
[Site "Tornelo"]
[Date "2022.06.26"]
[Round "9.1"]
[White "khezrian, Neda"]
[Black "Subramanian, Anusha"]
[Result "0-1"]
[ECO "D02"]
[WhiteElo "1056"]
[BlackElo "1671"]
[Annotator "NA RC"]
[PlyCount "64"]
[EventDate "2022.06.24"]
[EventType "team-tourn"]
[EventCountry "NET"]
[SourceTitle "playchess.com"]
[Source "ChessBase"]
[SourceQuality "1"]
[WhiteTeam "Iran"]
[BlackTeam "England"]
[WhiteTeamCountry "IRI"]
[BlackTeamCountry "ENG"]
[TimeControl "180+2"]

1. d4 {[%emt 0:00:02]} d5 {[%emt 0:00:04]} 2. Bf4 {[%emt 0:00:02]} Bf5 {[%emt 0:00:02]} 3. Nf3 {[%emt 0:00:02]} e6 {[%emt 0:00:01]} 4. e3 {[%emt 0:00:05]} Bd6 {[%emt 0:00:02]} 5. Bg3 {[%emt 0:00:02]} Nf6 {[%emt 0:00:02]} 6. c3 {[%emt 0:00:02]} O-O {[%emt 0:00:04]} 7. Nbd2 {[%emt 0:00:05]} c5 {[%emt 0:00:02]} 8. Be2 {[%emt 0:00:02]} Nc6 {[%emt 0:00:03]} 9. O-O {[%emt 0:00:07]} cxd4 {[%emt 0:00:04]} 10. cxd4 {[%emt 0:00:04]} Bxg3 {[%emt 0:00:06]} 11. hxg3 {[%emt 0:00:08]} a6 {[%emt 0:00:02]} 12. Ne5 {[%emt 0:00:04]} Qc7 {[%emt 0:00:14]} 13. Ndf3 {[%emt 0:00:05]} Rac8 {[%emt 0:00:09]} 14. Rc1 {[%emt 0:00:04]} Qd6 {[%emt 0:00:24]} 15. Qb3 {[%emt 0:00:17]} b5 {[%emt 0:00:07]} 16. a4 {[%emt 0:00:26]} b4 {[%emt 0:00:20]} 17. Bxa6 {[%emt 0:00:10]} Rc7 {[%emt 0:00:16]} 18. Bb5 {[%emt 0:00:14]} Na5 {[%emt 0:00:13]} 19. Qd1 {[%emt 0:00:13]} Rfc8 {[%emt 0:00:08]} 20. Rxc7 {[%emt 0:00:08]} Rxc7 {[%emt 0:00:01]} 21. Qd2 {[%emt 0:00:11]} Rc2 {[%emt 0:00:05]} 22. Qd1 {[%emt 0:00:06]} Rxb2 {[%emt 0:00:04]} 23. Qc1 {[%emt 0:00:11]} Rc2 {[%emt 0:00:02]} 24. Qd1 {[%emt 0:00:06]} Qc7 {[%emt 0:00:11]} 25. Bd3 {[%emt 0:00:22]} Bxd3 {[%emt 0:00:11]} 26. Nxd3 {[%emt 0:00:02]} Qc3 {[%emt 0:00:05]} 27. Qe1 {[%emt 0:00:06]} Qxd3 {[%emt 0:00:03]} 28. Ne5 {[%emt 0:00:11]} Qc3 {[%emt 0:00:03]} 29. Qd1 {[%emt 0:00:08]} b3 {[%emt 0:00:04]} 30. Qd3 {[%emt 0:00:03]} Qxd3 {[%emt 0:00:04]} 31. Nxd3 {[%emt 0:00:02]} b2 {[%emt 0:00:01]} 32. Nb4 {[%emt 0:00:12]} Rc1 {[%emt 0:00:03]} 0-1

[Event "Queens Festival Final Team 2022"]
[Site "Tornelo"]
[Date "2022.06.26"]
[Round "9.2"]
[White "Ovezdurdiyeva, Jemal"]
[Black "Song, Yuxin"]
[Result "0-1"]
[ECO "E46"]
[WhiteElo "2061"]
[BlackElo "2317"]
[Annotator "TA"]
[PlyCount "96"]
[EventDate "2022.06.24"]
[EventType "team-tourn"]
[EventCountry "NET"]
[SourceTitle "playchess.com"]
[Source "ChessBase"]
[SourceQuality "1"]
[WhiteTeam "Turkmenistan"]
[BlackTeam "China"]
[WhiteTeamCountry "TKM"]
[BlackTeamCountry "CHN"]
[TimeControl "180+2"]

{[%evp 13,96,-13,13,-4,0,0,0,0,0,0,0,0,0,0,0,0,0,0,-6,-6,-6,-39,-24,-48,-56,-68,-51,-63,-6,-66,-29,-43,-22,-91,-27,-97,-100,-131,-127,-136,-119,-106,-92,-102,-87,-105,-94,-94,-91,-91,-91,-95,-89,-102,-89,-93,-91,-110,-103,-121,-112,-130,-133,-131,-108,-128,-75,-76,-77,-164,-90,-66,-23,-23,-8,-8,-8,-1604,-350,-1622,-1466,-1522,-1512,-1188,-991]} 1. d4 {[%emt 0:00:02]} Nf6 {[%emt 0:00:04]} 2. c4 {[%emt 0:00:02]} e6 {[%emt 0:00:01]} 3. Nc3 {[%emt 0:00:02]} Bb4 {[%emt 0:00:01]} 4. e3 {[%emt 0:00:00]} O-O {[%emt 0:00:02]} 5. Nge2 {[%emt 0:00:01]} d5 {[%emt 0:00:01]} 6. a3 {[%emt 0:00:02]} Be7 {[%emt 0:00:01]} 7. Nf4 {[%emt 0:00:01]} b6 {[%emt 0:00:02]} 8. Bd3 {[%emt 0:00:02] E46: Nimzo-Indian: Rubinstein: 4 e3 0-0 5 Ne2 without early Bd3.} dxc4 {[%emt 0:00:02]} 9. Bxc4 {[%emt 0:00:02]} Bb7 {[%emt 0:00:01] Prevents Qf3.} 10. O-O {[%emt 0:00:01] The position is equal.} c5 {[%emt 0:00:01]} 11. d5 {[%emt 0:00:16] Inhibits Nc6.} exd5 {[%emt 0:00:07]} 12. Nfxd5 {[%emt 0:00:06] [#]} Nxd5 $146 {[%emt 0:00:01]} ({Predecessor:} 12... Nbd7 13. Nxe7+ Qxe7 14. Nd5 Qe4 15. Nxf6+ Nxf6 16. Qf3 Qxf3 17. gxf3 Bxf3 18. Re1 Rad8 {0-1 (43) Turkkan,E (1545)-Aktan,M (1758) Antalya 2018}) 13. Bxd5 {[%emt 0:00:02]} Bxd5 {[%emt 0:00:04]} 14. Qxd5 {[%emt 0:00:02]} Qxd5 {[%emt 0:00:04]} 15. Nxd5 {[%emt 0:00:01]} Nc6 {[%emt 0:00:01]} 16. Nxe7+ {[%emt 0:00:04]} Nxe7 {[%emt 0:00:01]} 17. e4 {[%emt 0:00:01]} Rad8 {[%emt 0:00:04]} 18. Bg5 {[%emt 0:00:04]} f6 {[%emt 0:00:02]} 19. Be3 {[%emt 0:00:01]} Nc6 {[%emt 0:00:09][%cal Be7c6,Bc6e5,Be5g4,Bg4f2][%mdl 32] Inhibits b4.} 20. Rfd1 {[%emt 0:00:04]} Rde8 {[%emt 0:00:25]} ({Black should try} 20... Ne5 $15) 21. Rd6 {[%emt 0:00:15]} (21. b4 $1 $11) 21... Ne5 {[%emt 0:00:31]} 22. Rc1 {[%emt 0:00:28] Inhibits Nc4.} Ng4 {[%emt 0:00:05]} 23. Rd7 {[%emt 0:00:14]} (23. Bd2 $11) 23... Rf7 {[%emt 0:00:08]} ({Much worse is} 23... Rxe4 $6 24. b4 $11) (23... Nxe3 $17 24. fxe3 Rf7 25. Rxf7 Kxf7) 24. Rxf7 {[%emt 0:00:27]} (24. Rd3 $11) 24... Kxf7 $11 {[%emt 0:00:01][%mdl 4096] Endgame KRB-KRN} 25. Bf4 {[%emt 0:00:06]} Rxe4 {[%emt 0:00:05]} 26. Bb8 {[%emt 0:00:04]} Re2 {[%emt 0:00:11][%csl LRb2,LRf2]} 27. b4 {[%emt 0:00:12]} Nxf2 {[%emt 0:00:11] [#] aiming for ...Nd3.} ({Much less strong is} 27... Rxf2 28. h3 $16) 28. bxc5 {[%emt 0:00:10]} Nd3 {[%emt 0:00:11]} 29. Rd1 {[%emt 0:00:04]} Nxc5 {[%emt 0:00:14] And now ...a5 would win. Black is more active.} 30. Bxa7 {[%emt 0:00:02]} Na4 {[%emt 0:00:08]} 31. Rb1 {[%emt 0:00:07]} Re7 {[%emt 0:00:11]} 32. Bb8 {[%emt 0:00:04]} Rb7 {[%emt 0:00:17]} 33. Bd6 {[%emt 0:00:07]} Ke6 {[%emt 0:00:03]} 34. Bb4 {[%emt 0:00:04]} Kd5 {[%emt 0:00:05]} 35. Rc1 {[%emt 0:00:07]} Nc5 {[%emt 0:00:04]} 36. Rc2 {[%emt 0:00:09]} Re7 {[%emt 0:00:03]} 37. Kf2 {[%emt 0:00:02]} Nd3+ {[%emt 0:00:02]} 38. Kf3 {[%emt 0:00:07]} Nxb4 {[%emt 0:00:09]} 39. axb4 $17 {[%emt 0:00:01] KR-KR} Ra7 {[%emt 0:00:05]} (39... Kd6 $142 40. h3 Rc7) 40. b5 {[%emt 0:00:10]} Ra3+ {[%emt 0:00:07]} 41. Kf4 {[%emt 0:00:04]} (41. Ke2 $17) 41... Rb3 {[%emt 0:00:13]} (41... Ra4+ $19 42. Kf3 Rc4 43. Rd2+ Rd4) 42. Rc7 {[%emt 0:00:04]} g5+ {[%emt 0:00:02]} 43. Kf5 {[%emt 0:00:02]} Rxb5 {[%emt 0:00:01] [#] White must now prevent ...Kd6+.} 44. Rxh7 {[%emt 0:00:08]} Rb2 {[%emt 0:00:01]} 45. g4 {[%emt 0:00:11][%mdl 8192] This move loses the game for White.} (45. g3 $11) 45... Rf2+ $19 {[%emt 0:00:02]} 46. Kg6 {[%emt 0:00:01]} b5 {[%emt 0:00:00][%cal Bb6b5,Bb5b4][%mdl 32] ...b4 is the strong threat. Black is clearly winning.} 47. Rd7+ {[%emt 0:00:07]} Kc6 {[%emt 0:00:02]} 48. Rf7 {[%emt 0:00:02]} b4 {[%emt 0:00:03] Weighted Error Value: White=0.35/Black=0.17 (very precise)} 0-1

[Event "Queens Festival Final Team 2022"]
[Site "Tornelo"]
[Date "2022.06.26"]
[Round "9.2"]
[White "Hong, Xing"]
[Black "Shohradowa, Lala"]
[Result "1-0"]
[ECO "C01"]
[WhiteElo "1999"]
[BlackElo "1856"]
[Annotator "NA RC"]
[PlyCount "59"]
[EventDate "2022.06.24"]
[EventType "team-tourn"]
[EventCountry "NET"]
[SourceTitle "playchess.com"]
[Source "ChessBase"]
[SourceQuality "1"]
[WhiteTeam "China"]
[BlackTeam "Turkmenistan"]
[WhiteTeamCountry "CHN"]
[BlackTeamCountry "TKM"]
[TimeControl "180+2"]

1. e4 {[%emt 0:00:02]} e6 {[%emt 0:00:04]} 2. d4 {[%emt 0:00:02]} d5 {[%emt 0:00:02]} 3. Nc3 {[%emt 0:00:01]} Nf6 {[%emt 0:00:02]} 4. Bg5 {[%emt 0:00:02]} Be7 {[%emt 0:00:03]} 5. exd5 {[%emt 0:00:01]} exd5 {[%emt 0:00:02]} 6. Bd3 {[%emt 0:00:01]} O-O {[%emt 0:00:02]} 7. Nge2 {[%emt 0:00:01]} h6 {[%emt 0:00:02]} 8. Bh4 {[%emt 0:00:01]} b6 {[%emt 0:00:03]} 9. O-O {[%emt 0:00:02]} c5 {[%emt 0:00:01]} 10. dxc5 {[%emt 0:00:04]} bxc5 {[%emt 0:00:03]} 11. Bxf6 {[%emt 0:00:01]} Bxf6 {[%emt 0:00:04]} 12. Nxd5 {[%emt 0:00:01]} Bxb2 {[%emt 0:00:05]} 13. Rb1 {[%emt 0:00:03]} Bb7 {[%emt 0:00:04]} 14. Ndf4 {[%emt 0:00:17]} Qf6 {[%emt 0:00:07]} 15. c3 {[%emt 0:00:09]} Bxc3 {[%emt 0:00:04]} 16. Rxb7 {[%emt 0:00:03]} Be5 {[%emt 0:00:07]} 17. Nd5 {[%emt 0:00:09]} Qd6 {[%emt 0:00:16]} 18. f4 {[%emt 0:00:39]} Qxd5 {[%emt 0:00:05]} 19. Bh7+ {[%emt 0:00:03]} Kxh7 {[%emt 0:00:04]} 20. Qxd5 {[%emt 0:00:02]} Bf6 {[%emt 0:00:05]} 21. Rxf7 {[%emt 0:00:02]} Rxf7 {[%emt 0:00:03]} 22. Qxf7 {[%emt 0:00:04]} Nc6 {[%emt 0:00:11]} 23. Qb7 {[%emt 0:00:02]} Re8 {[%emt 0:00:03]} 24. Qxc6 {[%emt 0:00:12]} Rxe2 {[%emt 0:00:02]} 25. Qxc5 {[%emt 0:00:01]} Rxa2 {[%emt 0:00:01]} 26. Qf5+ {[%emt 0:00:03]} Kh8 {[%emt 0:00:03]} 27. Rd1 {[%emt 0:00:04]} a5 {[%emt 0:00:09]} 28. g4 {[%emt 0:00:04]} Ra4 {[%emt 0:00:23]} 29. Qc8+ {[%emt 0:00:05]} Kh7 {[%emt 0:00:02]} 30. Qc2+ {[%emt 0:00:01]} 1-0

[Event "Queens Festival Final Team 2022"]
[Site "Tornelo"]
[Date "2022.06.26"]
[Round "9.2"]
[White "Agajanova, Meryem"]
[Black "Cui, Wen"]
[Result "1-0"]
[ECO "E01"]
[WhiteElo "1783"]
[BlackElo "1718"]
[Annotator "NA RC"]
[PlyCount "131"]
[EventDate "2022.06.24"]
[EventType "team-tourn"]
[EventCountry "NET"]
[SourceTitle "playchess.com"]
[Source "ChessBase"]
[SourceQuality "1"]
[WhiteTeam "Turkmenistan"]
[BlackTeam "China"]
[WhiteTeamCountry "TKM"]
[BlackTeamCountry "CHN"]
[TimeControl "180+2"]

1. d4 {[%emt 0:00:02]} d5 {[%emt 0:00:06]} 2. Nf3 {[%emt 0:00:02]} Nf6 {[%emt 0:00:01]} 3. c4 {[%emt 0:00:01]} e6 {[%emt 0:00:02]} 4. Nbd2 {[%emt 0:00:03]} c6 {[%emt 0:00:05]} 5. g3 {[%emt 0:00:01]} Bd6 {[%emt 0:00:04]} 6. Bg2 {[%emt 0:00:02]} O-O {[%emt 0:00:02]} 7. O-O {[%emt 0:00:01]} Nbd7 {[%emt 0:00:04]} 8. Qc2 {[%emt 0:00:01]} b6 {[%emt 0:00:07]} 9. Rd1 {[%emt 0:00:02]} Ba6 {[%emt 0:00:11]} 10. b3 {[%emt 0:00:10]} Rc8 {[%emt 0:00:02]} 11. e4 {[%emt 0:00:02]} dxe4 {[%emt 0:00:09]} 12. Nxe4 {[%emt 0:00:02]} Nxe4 {[%emt 0:00:04]} 13. Qxe4 {[%emt 0:00:01]} Nf6 {[%emt 0:00:04]} 14. Qe2 {[%emt 0:00:07]} Qe7 {[%emt 0:00:20]} 15. Ne5 {[%emt 0:00:05]} Bb7 {[%emt 0:00:07]} 16. Bb2 {[%emt 0:00:05]} c5 {[%emt 0:00:04]} 17. Bxb7 {[%emt 0:00:08]} Qxb7 {[%emt 0:00:03]} 18. dxc5 {[%emt 0:00:03]} Bxc5 {[%emt 0:00:02]} 19. Rd3 {[%emt 0:00:14]} Rfd8 {[%emt 0:00:10]} 20. Rad1 {[%emt 0:00:02]} Be7 {[%emt 0:00:03]} 21. Rxd8+ {[%emt 0:00:28]} Rxd8 {[%emt 0:00:02]} 22. Rxd8+ {[%emt 0:00:01]} Bxd8 {[%emt 0:00:03]} 23. Qd3 {[%emt 0:00:02]} Qc7 {[%emt 0:00:07]} 24. Nc6 {[%emt 0:00:30]} Be7 {[%emt 0:00:32]} 25. Nxe7+ {[%emt 0:00:03]} Qxe7 {[%emt 0:00:02]} 26. Qf3 {[%emt 0:00:03]} Ne8 {[%emt 0:00:24]} 27. Qg4 {[%emt 0:00:12]} f6 {[%emt 0:00:13]} 28. h4 {[%emt 0:00:06]} Nd6 {[%emt 0:00:09]} 29. Ba3 {[%emt 0:00:16]} Qd7 {[%emt 0:00:02]} 30. h5 {[%emt 0:00:05]} Nf5 {[%emt 0:00:07]} 31. Bb2 {[%emt 0:00:07]} Qd2 {[%emt 0:00:07]} 32. Bxf6 {[%emt 0:00:11]} Kf7 {[%emt 0:00:09]} 33. Bg5 {[%emt 0:00:18]} Qxa2 {[%emt 0:00:04]} 34. Qf3 {[%emt 0:00:04]} Kg8 {[%emt 0:00:12]} 35. Qa8+ {[%emt 0:00:11]} Kf7 {[%emt 0:00:02]} 36. Qb7+ {[%emt 0:00:01]} Kg8 {[%emt 0:00:01]} 37. Qc8+ {[%emt 0:00:02]} Kf7 {[%emt 0:00:03]} 38. Qd7+ {[%emt 0:00:02]} Kf8 {[%emt 0:00:02]} 39. Qxe6 {[%emt 0:00:08]} Qb1+ {[%emt 0:00:03]} 40. Kg2 {[%emt 0:00:02]} Qc2 {[%emt 0:00:02]} 41. Qc8+ {[%emt 0:00:04]} Kf7 {[%emt 0:00:02]} 42. Qc7+ {[%emt 0:00:03]} Kf8 {[%emt 0:00:02]} 43. Qd8+ {[%emt 0:00:03]} Kf7 {[%emt 0:00:01]} 44. Qd5+ {[%emt 0:00:01]} Kf8 {[%emt 0:00:02]} 45. Qf3 {[%emt 0:00:02]} Kg8 {[%emt 0:00:03]} 46. g4 {[%emt 0:00:01]} Nh6 {[%emt 0:00:04]} 47. Bxh6 {[%emt 0:00:06]} gxh6 {[%emt 0:00:01]} 48. Qd5+ {[%emt 0:00:01]} Kg7 {[%emt 0:00:02]} 49. Qd7+ {[%emt 0:00:02]} Kg8 {[%emt 0:00:01]} 50. Qe6+ {[%emt 0:00:02]} Kg7 {[%emt 0:00:02]} 51. Qe5+ {[%emt 0:00:01]} Kg8 {[%emt 0:00:02]} 52. Qd5+ {[%emt 0:00:02]} Kg7 {[%emt 0:00:01]} 53. Qf3 {[%emt 0:00:01]} Qd2 {[%emt 0:00:04]} 54. Qe3 {[%emt 0:00:02]} Qc2 {[%emt 0:00:02]} 55. Kg3 {[%emt 0:00:03]} Qb1 {[%emt 0:00:02]} 56. Qd4+ {[%emt 0:00:03]} Kg8 {[%emt 0:00:02]} 57. Qc3 {[%emt 0:00:02]} Qg1+ {[%emt 0:00:02]} 58. Kf3 {[%emt 0:00:02]} Qh1+ {[%emt 0:00:02]} 59. Ke2 {[%emt 0:00:02]} Qe4+ {[%emt 0:00:02]} 60. Kd2 {[%emt 0:00:03]} Qxg4 {[%emt 0:00:02]} 61. Qg3 {[%emt 0:00:03]} Qxg3 {[%emt 0:00:02]} 62. fxg3 {[%emt 0:00:01]} Kf7 {[%emt 0:00:02]} 63. Ke3 {[%emt 0:00:02]} Kf6 {[%emt 0:00:01]} 64. Kf4 {[%emt 0:00:01]} a6 {[%emt 0:00:03]} 65. b4 {[%emt 0:00:02]} Ke6 {[%emt 0:00:05]} 66. Ke4 {[%emt 0:00:03]} 1-0

[Event "Queens Festival Final Team 2022"]
[Site "Tornelo"]
[Date "2022.06.26"]
[Round "9.3"]
[White "Shah, Riya"]
[Black "Perez Rodriguez, Jennifer"]
[Result "0-1"]
[ECO "A45"]
[WhiteElo "1559"]
[BlackElo "2251"]
[Annotator "RC"]
[PlyCount "66"]
[EventDate "2022.06.24"]
[EventType "team-tourn"]
[EventCountry "NET"]
[SourceTitle "playchess.com"]
[Source "ChessBase"]
[SourceQuality "1"]
[WhiteTeam "Kenya"]
[BlackTeam "Paraguay"]
[WhiteTeamCountry "KEN"]
[BlackTeamCountry "PAR"]
[TimeControl "180+2"]

1. d4 {[%emt 0:00:02]} Nf6 {[%emt 0:00:04]} 2. e3 {[%emt 0:00:02]} b6 {[%emt 0:00:09]} 3. f4 {[%emt 0:00:04]} Bb7 {[%emt 0:00:02]} 4. Nf3 {[%emt 0:00:01]} d6 {[%emt 0:00:01]} 5. Bd3 {[%emt 0:00:01]} g6 {[%emt 0:00:02]} 6. O-O {[%emt 0:00:02]} Bg7 {[%emt 0:00:01]} 7. b3 {[%emt 0:00:01]} Nbd7 {[%emt 0:00:03]} 8. Bb2 {[%emt 0:00:01]} O-O {[%emt 0:00:01]} 9. Nbd2 {[%emt 0:00:04]} c5 {[%emt 0:00:02]} 10. c3 {[%emt 0:00:02]} Rc8 {[%emt 0:00:05]} 11. e4 {[%emt 0:00:08]} cxd4 {[%emt 0:00:03]} 12. cxd4 {[%emt 0:00:02]} e5 {[%emt 0:00:07]} 13. fxe5 {[%emt 0:00:09]} dxe5 {[%emt 0:00:03]} 14. d5 {[%emt 0:00:01]} Nh5 {[%emt 0:00:07]} 15. Nc4 {[%emt 0:00:09]} Nc5 {[%emt 0:00:33]} 16. Bxe5 {[%emt 0:00:19]} b5 {[%emt 0:00:29]} 17. Bxg7 {[%emt 0:00:13]} Kxg7 {[%emt 0:00:02]} 18. Ne3 {[%emt 0:00:20]} Nf4 {[%emt 0:00:10]} 19. Bxb5 {[%emt 0:00:22]} Qb6 {[%emt 0:00:15]} 20. Qd4+ {[%emt 0:00:20]} Kg8 {[%emt 0:00:02]} 21. Bc4 {[%emt 0:00:06]} Rfe8 {[%emt 0:00:11]} 22. Ng4 {[%emt 0:00:21]} Nxe4 {[%emt 0:00:07]} 23. Qxb6 {[%emt 0:00:05]} axb6 {[%emt 0:00:02]} 24. Rae1 {[%emt 0:00:10]} Kg7 {[%emt 0:00:08]} 25. Nfe5 {[%emt 0:00:22]} Nxd5 {[%emt 0:00:36]} 26. Rxf7+ {[%emt 0:00:04]} Kg8 {[%emt 0:00:04]} 27. Bxd5 {[%emt 0:00:06]} Bxd5 {[%emt 0:00:00]} 28. Nf6+ {[%emt 0:00:02]} Nxf6 {[%emt 0:00:02]} 29. Rxf6 {[%emt 0:00:01]} Kg7 {[%emt 0:00:04]} 30. Rff1 {[%emt 0:00:03]} Rc2 {[%emt 0:00:03]} 31. Nd7 {[%emt 0:00:05]} Rxg2+ {[%emt 0:00:02]} 32. Kh1 {[%emt 0:00:02]} Rg3+ {[%emt 0:00:02]} 33. Rf3 {[%emt 0:00:03]} Bxf3# {[%emt 0:00:02]} 0-1

[Event "Queens Festival Final Team 2022"]
[Site "Tornelo"]
[Date "2022.06.26"]
[Round "9.3"]
[White "Mayeregger Gonzalez, Renata"]
[Black "Muthoni, Vivian"]
[Result "1-0"]
[ECO "C44"]
[WhiteElo "1461"]
[BlackElo "1128"]
[Annotator "NA RC"]
[PlyCount "37"]
[EventDate "2022.06.24"]
[EventType "team-tourn"]
[EventCountry "NET"]
[SourceTitle "playchess.com"]
[Source "ChessBase"]
[SourceQuality "1"]
[WhiteTeam "Paraguay"]
[BlackTeam "Kenya"]
[WhiteTeamCountry "PAR"]
[BlackTeamCountry "KEN"]
[TimeControl "180+2"]

1. e4 {[%emt 0:00:02]} e5 {[%emt 0:00:06]} 2. Nf3 {[%emt 0:00:02]} Nc6 {[%emt 0:00:03]} 3. d4 {[%emt 0:00:06]} Bd6 {[%emt 0:00:07]} 4. d5 {[%emt 0:00:12]} Nce7 {[%emt 0:00:04]} 5. c4 {[%emt 0:00:04]} Nf6 {[%emt 0:00:03]} 6. Nc3 {[%emt 0:00:04]} c6 {[%emt 0:00:17]} 7. Be3 {[%emt 0:00:06]} cxd5 {[%emt 0:00:04]} 8. exd5 {[%emt 0:00:02]} e4 {[%emt 0:00:06]} 9. c5 {[%emt 0:00:11]} exf3 {[%emt 0:00:08]} 10. cxd6 {[%emt 0:00:02]} fxg2 {[%emt 0:00:23]} 11. Bxg2 {[%emt 0:00:11]} Nf5 {[%emt 0:00:08]} 12. Qf3 {[%emt 0:00:12]} Nxd6 {[%emt 0:00:10]} 13. O-O-O {[%emt 0:00:30]} O-O {[%emt 0:00:46]} 14. Bc5 {[%emt 0:00:22]} Qc7 {[%emt 0:00:06]} 15. Bd4 {[%emt 0:00:04]} Qd8 {[%emt 0:00:22]} 16. Bh3 {[%emt 0:00:06]} Re8 {[%emt 0:00:05]} 17. Rhg1 {[%emt 0:00:09]} Kf8 {[%emt 0:00:12]} 18. Qg3 {[%emt 0:00:37]} Nh5 {[%emt 0:00:05]} 19. Bxg7+ {[%emt 0:00:22]} 1-0

[Event "Queens Festival Final Team 2022"]
[Site "Tornelo"]
[Date "2022.06.26"]
[Round "9.3"]
[White "Mayeregger Gonzalez, Fiorella"]
[Black "Mwendwa, Triza"]
[Result "0-1"]
[ECO "D12"]
[WhiteElo "1284"]
[BlackElo "1470"]
[Annotator "NA RC"]
[PlyCount "70"]
[EventDate "2022.06.24"]
[EventType "team-tourn"]
[EventCountry "NET"]
[SourceTitle "playchess.com"]
[Source "ChessBase"]
[SourceQuality "1"]
[WhiteTeam "Paraguay"]
[BlackTeam "Kenya"]
[WhiteTeamCountry "PAR"]
[BlackTeamCountry "KEN"]
[TimeControl "180+2"]

1. Nf3 {[%emt 0:00:02]} d5 {[%emt 0:00:07]} 2. c4 {[%emt 0:00:04]} c6 {[%emt 0:00:03]} 3. e3 {[%emt 0:00:02]} Nf6 {[%emt 0:00:03]} 4. d4 {[%emt 0:00:02]} Bf5 {[%emt 0:00:05]} 5. Nc3 {[%emt 0:00:02]} e6 {[%emt 0:00:02]} 6. Be2 {[%emt 0:00:02]} dxc4 {[%emt 0:00:09]} 7. Bxc4 {[%emt 0:00:03]} Bd6 {[%emt 0:00:02]} 8. O-O {[%emt 0:00:03]} Nbd7 {[%emt 0:00:07]} 9. Re1 {[%emt 0:00:02]} Ne4 {[%emt 0:00:03]} 10. Bd3 {[%emt 0:00:10]} Ndf6 {[%emt 0:00:05]} 11. Qc2 {[%emt 0:00:06]} Nxc3 {[%emt 0:00:17]} 12. Bxf5 {[%emt 0:00:08]} exf5 {[%emt 0:00:27]} 13. bxc3 {[%emt 0:00:07]} Ne4 {[%emt 0:00:03]} 14. Nd2 {[%emt 0:00:09]} Qe7 {[%emt 0:00:04]} 15. f3 {[%emt 0:00:16]} Qh4 {[%emt 0:00:09]} 16. g3 {[%emt 0:00:28]} Nxg3 {[%emt 0:00:04]} 17. hxg3 {[%emt 0:00:05]} Bxg3 {[%emt 0:00:13]} 18. Re2 {[%emt 0:00:07]} Qg5 {[%emt 0:00:19]} 19. Rg2 {[%emt 0:00:13]} h5 {[%emt 0:00:05]} 20. Nf1 {[%emt 0:00:11]} h4 {[%emt 0:00:03]} 21. e4 {[%emt 0:00:07]} f4 {[%emt 0:00:03]} 22. Nxg3 {[%emt 0:00:10]} hxg3 {[%emt 0:00:06]} 23. Qd2 {[%emt 0:00:22]} Qh4 {[%emt 0:00:10]} 24. Kf1 {[%emt 0:00:33]} Qh1+ {[%emt 0:00:13]} 25. Rg1 {[%emt 0:00:01]} Qh3+ {[%emt 0:00:11]} 26. Qg2 {[%emt 0:00:03]} Qxg2+ {[%emt 0:00:04]} 27. Rxg2 {[%emt 0:00:04]} Rh1+ {[%emt 0:00:05]} 28. Ke2 {[%emt 0:00:05]} g5 {[%emt 0:00:04]} 29. Bb2 {[%emt 0:00:03]} Rxa1 {[%emt 0:00:06]} 30. Bxa1 {[%emt 0:00:00]} O-O-O {[%emt 0:00:03]} 31. e5 {[%emt 0:00:02]} Rd5 {[%emt 0:00:03]} 32. Kd3 {[%emt 0:00:03]} Ra5 {[%emt 0:00:02]} 33. Ke4 {[%emt 0:00:03]} c5 {[%emt 0:00:04]} 34. Kf5 {[%emt 0:00:04]} cxd4 {[%emt 0:00:04]} 35. cxd4 {[%emt 0:00:02]} Ra3 {[%emt 0:00:08]} 0-1